Cogmind - Beta 15 *** ADVENTURER MODE // 2025.06.06 @ 14:03:06 Player: triibiis Result: Destroyed by Autobeam Turret with Autobeam Performance ------------- Evolutions (0) 0 Regions Visited (2) 400 Robots Destroyed (27) 135 Value Destroyed (707) 707 Prototype IDs (0) 0 Alien Tech Used (0) 0 Bonus (0) 0 TOTAL SCORE: 1242 Bonus ------- None Cogmind --------- Core Integrity 0/250 Matter 226/300 Energy 99/100 System Corruption 0% Temperature Cool (24) Movement Rolling (115) Ox1 Location -10/Subcaves Parts ------- > --- POWER (1) -------- (None) > --- PROPULSION (2) --- Compact Wheel > --- UTILITY (2) ------ Large Storage Unit Makeshift Hacking Suite > --- WEAPON (2) ------- (None) > --- INVENTORY (15) --- Light Ion Engine Light Treads Light Treads Mining Laser Peak State ------------ > --- POWER ------------ Ion Engine > --- PROPULSION ------- Compact Wheel Compact Wheel > --- UTILITY ---------- Large Storage Unit Makeshift Hacking Suite > --- WEAPON ----------- Grenade Launcher Grenade Launcher > --- INVENTORY -------- Light Ion Engine Light Treads Light Treads Grenade Launcher Mining Laser [Rating: 10] Favorites ----------- Power Ion Engine Engine Ion Engine Propulsion Compact Wheel Leg Aluminum Leg Wheel Compact Wheel Hover Unit Hover Unit Utility Large Storage Unit Storage Large Storage Unit Hackware Makeshift Hacking Suite Weapon Grenade Launcher Energy Gun EM Pulse Gun Ballistic Gun Light Assault Rifle Launcher Grenade Launcher Build | -11 -10 -10 ------- Run | Yrd Mat Sub Slots Evolved . | . . . Power . | . . . Propulsion . | . . . Utility . | . . . Weapon . | . . . Parts Attached 19 | 6 11 2 Power 3 | 1 2 . Engine 3 | 1 2 . Core . | . . . Reactor . | . . . Propulsion 6 | 2 4 . Treads . | . . . Leg 2 | 2 . . Wheel 2 | . 2 . Hover 2 | . 2 . Flight . | . . . Utility 3 | 1 1 1 Device . | . . . Storage 2 | 1 1 . Processor . | . . . Hackware 1 | . . 1 Protection . | . . . Artifact . | . . . Weapon 7 | 2 4 1 Energy Gun 2 | 1 1 . Energy Cannon . | . . . Ballistic Gun 1 | 1 . . Ballistic Cannon . | . . . Launcher 4 | . 3 1 Special Weapon . | . . . Impact Weapon . | . . . Slashing Weapon . | . . . Piercing Weapon . | . . . Special Melee Weapon . | . . . Unidentified Prototypes . | . . . Parts Lost 12 | . 7 5 Power 3 | . 2 1 Propulsion 3 | . 2 1 Utility . | . . . Weapon 6 | . 3 3 Highest Loss Streak 5 | . 5 4 To Critical Strikes . | . . . Average Backups 4 | 4 5 4 Power . | . . 1 Propulsion 2 | 2 2 2 Utility . | . . . Weapon 1 | . 1 1 Tool/Special . | . . . Unused Backups 4 | . . 4 Power 1 | . . 1 Propulsion 2 | . . 2 Utility . | . . . Weapon 1 | . . 1 Tool/Special . | . . . Average Slot Usage (%) 84 | . 81 88 Engine 12 | . 11 13 Leg 3 | . 6 . Wheel 21 | . 15 27 Hover 2 | . 5 . Storage 14 | . 14 14 Hackware 1 | . . 3 Energy Gun 2 | . 5 . Ballistic Gun 2 | . 5 . Launcher 21 | . 16 27 Peak Build Rating 10 | 6 7 10 Average Rating 6 | 4 5 7 On Entrance 4 | . 6 6 Naked Turns . | . . . Heaviest Build 31 | 11 31 31 Greatest Support 32 | 20 32 32 Greatest Overweight (x) 3 | 1 3 1 Average Overweight (x) . | . . . Largest Inventory Capacity 15 | 8 15 15 Average Capacity 13 | 6 11 15 Most Carried 6 | 6 6 5 Average Carried 4 | 4 5 4 Final Capacity 15 | 8 15 15 Final Carried 6 | 6 5 4 Class Distribution -------------------- 87% | Mutant 12% | Hacker-Mutant Dominant Class ---------------- Mutant | -10/Materials Mutant | -10/Subcaves Resources | -11 -10 -10 ----------- Run | Yrd Mat Sub Matter Collected 668 | 225 87 356 Remotely . | . . . Salvage Created 578 | . 480 98 Parts 54 | . 32 22 Haulers Intercepted 1 | . 1 . Recyclers Shooed 1 | . 1 . Parts Field Recycled . | . . . Retrieved Matter . | . . . Parts Self-Destructed 8 | . . 8 Prevented . | . . . Kills | -11 -10 -10 ------- Run | Yrd Mat Sub Combat Hostiles Destroyed 21 | . 12 9 Guns 5 | . 5 . AOE 16 | . 7 9 Classes Destroyed 7 | . 5 2 Worker 2 | . 2 . Builder 2 | . 2 . Hauler 1 | . 1 . Watcher 1 | . 1 . Swarmer 5 | . . 5 Grunt 12 | . 12 . Subdweller 4 | . . 4 Best Kill Streak 10 | . 10 4 Combat Bots Only 6 | . 6 4 Max Kills in Single Turn 3 | . 3 2 Gunslinging . | . . . Exploded 2 | . 2 2 Melee . | . . . Uniques/NPCs Destroyed . | . . . Combat | -11 -10 -10 -------- Run | Yrd Mat Sub Hostile Shots Fired 174 | . 115 59 Missed 61 | . 39 22 Hits 113 | . 76 37 Projectile 113 | . 76 37 Critical Strikes 3 | . 3 . Damage Taken 1062 | . 770 292 Core 253 | . 176 77 Absorbed by Shields . | . . . Ignored by Resistances 330 | . 238 92 Core Remaining (%) 100 | 100 . . Volleys Fired 60 | . 46 14 Largest 2 | . 2 2 Hottest 70 | . 70 60 Shots Fired 103 | . 78 25 Gun 64 | . 64 . Cannon . | . . . Launcher 39 | . 14 25 Special . | . . . Kinetic 28 | . 28 . Thermal 7 | . 7 . Explosive 39 | . 14 25 Electromagnetic 29 | . 29 . Robot Hit Streak 19 | . 9 19 Robot Miss Streak 5 | . 5 . Penetration Max . | . . . Secondary Targets 3 | . 3 . Max Gunslinging Chain 1 | . 1 . Shots Hit Robots 72 | . 56 16 Core Hits 58 | . 38 20 Critical Kills . | . . . Critical Parts Destroyed . | . . . Critical Strikes . | . . . Melee Attacks . | . . . Impact . | . . . Slashing . | . . . Piercing . | . . . Sneak Attacks . | . . . Combat Hostiles . | . . . Follow-up Attacks . | . . . Damage Inflicted 2127 | . 1258 869 Guns 488 | . 488 . Cannons . | . . . Explosions 1632 | . 763 869 Melee . | . . . Ramming 7 | . 7 . Kinetic 179 | . 179 . Thermal 107 | . 107 . Explosive 1600 | . 731 869 Electromagnetic 234 | . 234 . Impact . | . . . Slashing . | . . . Piercing . | . . . Highest Corruption . | . . . Average Corruption . | . . . Corruption Purged . | . . . Corruption Blocked . | . . . Overload Shots . | . . . Overflow Damage 20 | . 16 4 Projectiles . | . . . Explosions 20 | . 16 4 Melee . | . . . Knockbacks . | . . . Impact . | . . . Kinetic . | . . . Secondary . | . . . Self-Inflicted Damage 130 | . 65 65 Shots 8 | . 3 5 Rammed 2 | . 2 . Targets Rammed 2 | . 2 . Kicked . | . . . Crushed . | . . . Highest Temperature 266 | . 266 . Average Temperature 112 | . 112 . Received Heat Transfer 729 | . 561 168 Effects 2 | . 2 . Interference 2 | . 2 . Siege Activations . | . . . Martial Activations . | . . . Shielding Activations . | . . . Robots Disrupted . | . . . Combat Hostiles . | . . . Robots Corrupted . | . . . Combat Hostiles . | . . . Parts Fried . | . . . Impact Corruptions . | . . . Robots Melted . | . . . Combat Hostiles . | . . . Parts Melted . | . . . Heat Transferred 272 | . 272 . Parts Sabotaged . | . . . Parts Stolen . | . . . Parts Stripped . | . . . Power Chain Reactions 1 | . 1 . Alert | -11 -10 -10 ------- Run | Yrd Mat Sub Maximum Alert Level 1 | . 1 . Low Security (%) 99 | 100 99 . Level 1 . | . . . Level 2 . | . . . Level 3 . | . . . Level 4 . | . . . Level 5 . | . . . High Security . | . . . Max Security . | . . . Peak Influence 206 | . 206 . Initial . | . . . Average 77 | . 86 . Influence Increases 588 | . 458 130 Destroy 0b10 Robot/C 340 | . 240 100 Destroy 0b10 Robot/NC 30 | . 30 . Destroy Leader 54 | . 54 . Successful Hack 14 | . 14 . Disable Machine 18 | . 18 . Destroy Structure 72 | . 72 . Lose Combat Pursuer 60 | . 30 30 Influence Decreases 528 | . 400 128 Entered New Map 33 | . . 33 Time Decay 385 | . 330 55 Lost Part 110 | . 70 40 Squads Dispatched 3 | . 3 . Investigation 3 | . 3 . Extermination . | . . . Reinforcement . | . . . Assault . | . . . Garrison . | . . . Intercept . | . . . Searches Triggered . | . . . Construction Impeded . | . . . Haulers Reinforced . | . . . Active Scanning Responses . | . . . Cargo Convoy Interrupts . | . . . Stealth | -11 -10 -10 --------- Run | Yrd Mat Sub Distress Signals 2 | . 2 . Communications Jammed . | . . . Distress Signals . | . . . Times Spotted 35 | . 23 12 Peak Tracking Total 7 | . 7 3 Tactical Retreats 2 | . 1 1 Traps | -11 -10 -10 ------- Run | Yrd Mat Sub Traps Triggered . | . . . Indirectly . | . . . Trap Hack Attempts . | . . . Triggered . | . . . Disarmed . | . . . Reprogrammed 6 | . 6 . Reused . | . . . Traps Extracted . | . . . Installed . | . . . Triggered . | . . . Machines | -11 -10 -10 ---------- Run | Yrd Mat Sub Machines Disabled 6 | . 2 4 Max in Single Turn 2 | . 1 2 Machines Repaired . | . . . Machines Dismantled . | . . . Machines Sabotaged . | . . . Overloaded Fab Kills . | . . . Hacking | -11 -10 -10 --------- Run | Yrd Mat Sub Machines Accessed 5 | . 5 . Terminals 5 | . 5 . Fabricators . | . . . Repair Stations . | . . . Recycling Units . | . . . Scanalyzers . | . . . Garrison Access . | . . . Total Hacks 18 | . 18 . Successful 4 | . 4 . Failed 14 | . 14 . Catastrophic 6 | . 6 . Database Lockouts . | . . . Manual 11 | . 11 . Terminals 18 | . 18 . Fabricators . | . . . Repair Stations . | . . . Recycling Units . | . . . Scanalyzers . | . . . Garrison Access . | . . . Terminal Hacks 4 | . 4 . Record 2 | . 2 . Level Access Points 1 | . 1 . Reprogram Traps 1 | . 1 . Fabricator Hacks . | . . . Repair Station Hacks . | . . . Recycling Unit Hacks . | . . . Scanalyzer . | . . . Garrison Access Hacks . | . . . Unauthorized Hacks . | . . . Terminals . | . . . Fabricators . | . . . Repair Stations . | . . . Recycling Units . | . . . Scanalyzers . | . . . Garrison Access . | . . . Data Cores Recovered . | . . . Used . | . . . Hacking Detections 5 | . 5 . Full Trace Events 5 | . 5 . Feedback Events . | . . . Feedback Blocked . | . . . Robot Schematics Acquired . | . . . Robots Built . | . . . Authchips . | . . . Time . | . . . Total Robot Build Rating . | . . . Part Schematics Acquired . | . . . Parts Built . | . . . Authchips . | . . . Time . | . . . Total Part Build Rating . | . . . Parts Repaired . | . . . Time . | . . . Parts Recycled . | . . . Recycled Matter . | . . . Retrieved Matter . | . . . Retrieved Components . | . . . Parts Scanalyzed . | . . . Part Schematics Acquired . | . . . Parts Damaged . | . . . Bothacking | -11 -10 -10 ------------ Run | Yrd Mat Sub Used RIF Installer . | . . . Robots Hacked . | . . . Non-combat . | . . . Combat . | . . . Robot Hacks Applied . | . . . Relay Couplers Released . | . . . Fabnet Peak Effective % . | . . . Robots Rewired . | . . . Allies Hacked . | . . . Hacks Repelled . | . . . Allies | -11 -10 -10 -------- Run | Yrd Mat Sub Total Allies . | . . . Largest Group . | . . . Highest-Rated Group . | . . . Highest-Rated Ally . | . . . Total Orders . | . . . Ally Attacks . | . . . Total Damage . | . . . Kills . | . . . Allies Corrupted . | . . . Allies Melted . | . . . Intel | -11 -10 -10 ------- Run | Yrd Mat Sub Active Infowar (turns) . | . . . Robot Analysis Total . | . . . Derelict Logs Recovered . | . . . Drone Launches . | . . . Drone Recoveries . | . . . Exploration | -11 -10 -10 ------------- Run | Yrd Mat Sub Turns Passed 1550 | 81 737 732 Spaces Moved 1402 | 59 652 691 Core 13 | 10 3 . Treads . | . . . Legs 123 | 49 74 . Wheels 1093 | . 402 691 Hover 173 | . 173 . Flight . | . . . Fastest Speed 50 | 50 56 100 Average Speed 96 | 112 91 100 Slowest Speed 200 | 120 200 115 Overloaded Moves . | . . . Propulsion Burnouts . | . . . Robots Hopped . | . . . Potential Cave-ins . | . . . Cave-ins Triggered . | . . . Exploration Rate (%) 40 | 4 84 33 Regions Visited 2 Branch Regions 1 Pre-discovered Areas . | . . . Known Exits Taken . | . . . Unknown Exits Taken 2 | 1 1 . Scrap Searched 2 | . . 2 Spaces Dug . | . . . Terrain Destroyed 144 | . 69 75 Melee . | . . . Projectile . | . . . AOE 144 | . 69 75 Terrain Rammed . | . . . Walls Destroyed . | . . . Machines Disabled . | . . . Actions | -11 -10 -10 --------- Run | Yrd Mat Sub Total 1499 | 71 721 707 Wait 4 | . 4 . Move 1400 | 58 651 691 Hop . | . . . Pick Up 10 | 7 3 . Fast Attach 13 | 5 7 1 Attach 6 | 1 4 1 Detach . | . . . Swap . | . . . Drop 4 | . 4 . Fire 60 | . 46 14 Melee . | . . . Ram 2 | . 2 . Kick . | . . . Crush . | . . . Escape Stasis . | . . . Rewire . | . . . Trap . | . . . Miscellaneous . | . . . Route ------- -11/Scrapyard -10/Materials (discovered 4 exits: *Mat x3 / [*Sub]) -10/Subcaves (discovered 1 exit: [*Rec]) History --------- Turn | Location | Event 9 | -11/Scrapyard | Discovered new exit (range 15) 82 | -11/Scrapyard | Entered Materials 312 | -10/Materials | Build established: Mutant 362 | -10/Materials | Identified exit to Materials 387 | -10/Materials | Core integrity fell below 50% 424 | -10/Materials | Lost 5 parts (1p2n2w) 810 | -10/Materials | Discovered new exit (range 8) 819 | -10/Materials | Entered Subcaves 1173 | -10/Subcaves | Disturbed a concealed Subdweller 1204 | -10/Subcaves | Core integrity fell below 20% 1542 | -10/Subcaves | Discovered new exit (range 13) 1551 | -10/Subcaves | Destroyed by Autobeam Turret with Autobeam Last Messages --------------- Acquired 13 matter. Grenade Launcher destroyed. Destroyed Flight Unit. S-10 Pest destroyed. Acquired 1 matter. Acquired 39 matter. Ion Engine destroyed. S-10 Pest destroyed. Machine disabled. S-10 Pest destroyed. Machine disabled. Grenade Launcher destroyed. Machine disabled. EXIT=FOUND Machine disabled. Flight Unit fries itself beyond repair. Grenade Launcher destroyed. Lgt. Assault Rifle fries itself beyond repair. Com. Wheel destroyed. Lgt. Assault Rifle fries itself beyond repair. Map ----- +----------------------------------------------------+ | #????# # ## #??????? | | #????# #??????? | | ####???## #??????? | | #?????## ## #???????? | | ##????# ####### ?????????? | | #???## ##????# ## ??????????? | | #???# #????# ##????????????? | | ##### #??### ###???????????? | | ## ## #### ## ##??????????? | | # ## ### #### ####???????? | | # ## #?####??# ##??????? | | # ##### ## #??????## #??????? | | ## ##??###?# #?????#### #??????? | | ?## ##?????## #????## ### ##?????? | | ??# #?####### #??### ### #?????? | | ??# #?? #####??# ## #?????? | | ### ##??? ##?????# ##?????? | | #????? #####?### ##??????? | | ## #?????# ## ##### ##???????? | | ### #????# ##### ##????????? | | ###??# #???## # ##?????????? | | #?????###??## ## ##???#??????? | | ##????????## ### ### #??????? | | #????????# ### ##?????? | | #????????# #?????? | | #????????# @ * ## #????? | | # #???????# ## #? | | # ## ##???????# ##### #?? | | # ##?###????? ##???# #??? ## " | | ## #?????? * ###???# ##???? #??# | | ?# #????# % ##???? ##??????" #??? | | ?# ?????## t = ?????## #????????"##??? | | ?### ????#< [ ??????### ?????????#???? | | ???? ????# t ????????# "????????????? | | ???? ???# ????????## ""???????????? | | ???? ??##" # ?????????# "???????????? | | ????# ?????"" # ?????????#### ""???????????? | | ?????#??????? ## # ????????????? ????????????? | | ?????????????####?###?????????????? ????????????? | | ??????????????????????????????????? ?????????????? | | ?????????????????????????????????????????????????? | | ?????????????????????????????????????????????????? | | ?????????????????????????????????????????????????? | | ?????????????????????????????????????????????????? | | ?????????????????????????????????????????????????? | | ?????????????????????????????????????????????????? | | ?????????????????????????????????????????????????? | | ?????????????????????????????????????????????????? | | ?????????????????????????????????????????????????? | | ?????????????????????????????????????????????????? | +----------------------------------------------------+ Best States ------------- Heat Dissipation 25 Energy Generation 10 Energy Capacity 250 Matter Stores 300 Matter Capacity 300 Sight Range 16 Terrain Scan Density 10 Resistance: KI 20 Resistance: TH 20 Resistance: EX 20 Resistance: EM 20 Resistance: I 20 Resistance: S 20 Resistance: P 20 Evasion (%) 55 Offensive Hacking 21 Item Schematics ----------------- None Robot Schematics ------------------ None Fabricated ------------ Nothing Repaired ---------- Nothing Alien Tech Used ----------------- None Achievements -------------- None Challenges ------------ None Game ------ Seed MultinovaSalvagingPower Manual? 0 Play Time 00:14:33 Cumulative 8.4 hours Start 2025.06.06 @ 13:50:05 End 2025.06.06 @ 14:03:06 Sessions 1 Manual Loads 0 Difficulty Adventurer Special Mode None Game No. 20 Rogue 0 Adventurer 20 Explorer 0 Win Type - Total 0 Types 0/0/0/0/0/0/0/0/0/0 Lore% 7 Gallery% 11 Achievement% 16 Wizard Run 0 Options --------- Layout 1 ASCII 0 Keyboard 0 Movement Arrows Keybinds 0 Fullscreen 1 Font 36/Smallcaps Map View 50x43 Zoom Use 0% Tactical HUD 0 Map Filters NONE Filters NONE Steam 1 RUN: f0030f5f-c3c2-4c2e-a3fd-0f01d2bc4b2b